Cogmind - Beta 13 @@@ ROGUE MODE // 2024.05.03 @ 09:12:57 Player: ElectroBlueGuy Result: Destroyed by Y-45 Defender with Beam Rifle Performance ------------- Evolutions (1) 500 Regions Visited (3) 600 Robots Destroyed (73) 365 Value Destroyed (1395) 1395 Prototype IDs (7) 140 Alien Tech Used (0) 0 Bonus (142) 142 TOTAL SCORE: 3142 Bonus ------- High Alert Combat Kills 142 Cogmind --------- Core Integrity 0/400 Matter 196/300 Energy 280/280 System Corruption 0% Temperature Cool (9) Movement Rolling (95) Ox1 Location -9/Materials Parts ------- > --- POWER (1) -------- Heavy Ion Engine > --- PROPULSION (3) --- Wheel Wheel Wheel > --- UTILITY (3) ------ Large Storage Unit Targeting Computer Hardened Light Armor Plating > --- WEAPON (2) ------- Grenade Launcher Axe > --- INVENTORY (15) --- Light Ion Engine Small Storage Unit Medium Matter Pod (0) Tractor Beam EM Pulse Gun Heavy EM Pulse Gun Assault Rifle Shotgun Shotgun Hammer Maul Heavy Hammer Peak State ------------ > --- POWER ------------ Heavy Ion Engine > --- PROPULSION ------- Cesium-ion Thruster Cesium-ion Thruster Cesium-ion Thruster > --- UTILITY ---------- Large Storage Unit Weight Redist. System Machine Analyzer > --- WEAPON ----------- Rocket Launcher Maul > --- INVENTORY -------- Heavy Ion Engine Aluminum Leg Small Storage Unit Medium Matter Pod Experimental Sensor Array Tractor Beam EM Pulse Gun Improved EM Shotgun Assault Rifle Grenade Launcher Rocket Launcher Rocket Launcher Hammer Heavy Hammer Axe [Rating: 25] Favorites ----------- Power Heavy Ion Engine Engine Heavy Ion Engine Propulsion Aluminum Leg Leg Aluminum Leg Wheel Wheel Flight Unit Cesium-ion Thruster Utility Large Storage Unit Device Weight Redist. System Storage Large Storage Unit Processor Signal Interpreter Protection Hardened Light Armor Plating Weapon Rocket Launcher Energy Gun Small Laser Ballistic Gun Assault Rifle Launcher Rocket Launcher Impact Weapon Heavy Hammer Slashing Weapon Axe Build | -11 -10 -10 -9 ------- Run | Yrd Mat Min Mat Slots Evolved 2 | . . . 2 Power . | . . . . Propulsion 1 | . . . 1 Utility 1 | . . . 1 Weapon . | . . . . Parts Attached 52 | 6 12 2 32 Power 5 | 1 1 . 3 Engine 5 | 1 1 . 3 Core . | . . . . Reactor . | . . . . Propulsion 15 | 2 . 1 12 Treads . | . . . . Leg 6 | 2 . 1 3 Wheel 6 | . . . 6 Hover . | . . . . Flight 3 | . . . 3 Utility 13 | 1 4 1 7 Device 4 | . 1 1 2 Storage 4 | 1 2 . 1 Processor 4 | . 1 . 3 Hackware . | . . . . Protection 1 | . . . 1 Artifact . | . . . . Weapon 19 | 2 7 . 10 Energy Gun 3 | 1 . . 2 Energy Cannon . | . . . . Ballistic Gun 1 | 1 . . . Ballistic Cannon . | . . . . Launcher 10 | . 4 . 6 Special Weapon . | . . . . Impact Weapon 4 | . 3 . 1 Slashing Weapon 1 | . . . 1 Piercing Weapon . | . . . . Special Melee Weapon . | . . . . Unidentified Prototypes 2 | . . 1 1 Parts Lost 19 | . . . 19 Power 2 | . . . 2 Propulsion 9 | . . . 9 Utility 3 | . . . 3 Weapon 5 | . . . 5 Highest Loss Streak 9 | . . . 9 To Critical Strikes 1 | . . . 1 Average Slot Usage (%) 91 | . 97 100 78 Engine 12 | . 13 14 10 Leg 21 | . 28 28 8 Wheel 1 | . . . 4 Device 9 | . 2 14 13 Storage 15 | . 18 14 15 Processor 2 | . 6 . 1 Launcher 11 | . 11 14 9 Impact Weapon 12 | . 13 14 10 Naked Turns . | . . . . Heaviest Build 39 | 11 35 36 39 Greatest Support 36 | 20 26 26 36 Greatest Overweight (x) 12 | . 1 1 12 Average Overweight (x) . | . . 1 2 Largest Inventory Capacity 15 | 8 15 15 15 Average Capacity 12 | 7 8 15 15 Most Carried 15 | 5 11 12 15 Average Carried 9 | 1 6 11 11 Final Capacity 15 | 8 15 15 15 Final Carried 12 | 1 11 12 12 Class Distribution -------------------- 97% | Mutant Dominant Class ---------------- Mutant | -10/Materials Mutant | -10/Mines Mutant | -9/Materials Resources | -11 -10 -10 -9 ----------- Run | Yrd Mat Min Mat Matter Collected 1267 | 228 246 141 652 Remotely . | . . . . Salvage Created 1185 | . 338 71 776 Parts 92 | . 15 16 61 Haulers Intercepted 2 | . . . 2 Recyclers Shooed . | . . . . Parts Field Recycled . | . . . . Retrieved Matter . | . . . . Parts Self-Destructed . | . . . . Prevented . | . . . . Kills | -11 -10 -10 -9 ------- Run | Yrd Mat Min Mat Combat Hostiles Destroyed 42 | . 7 9 26 Guns 1 | . . . 1 AOE 39 | . 7 9 23 Classes Destroyed 10 | . 5 2 3 Worker 7 | . . . 7 Builder 7 | . 3 . 4 Tunneler 2 | . . 1 1 Hauler 2 | . . . 2 Recycler 4 | . 1 . 3 Operator 2 | . 1 . 1 Watcher 7 | . 3 . 4 Swarmer 20 | . . 9 11 Grunt 18 | . 7 . 11 Sentry 4 | . . . 4 Best Kill Streak 13 | . 5 3 13 Combat Bots Only 8 | . 4 3 8 Max Kills in Single Turn 4 | . 1 3 4 Gunslinging . | . . . . Exploded 4 | . 1 3 4 Melee . | . . . . Uniques/NPCs Destroyed . | . . . . Combat | -11 -10 -10 -9 -------- Run | Yrd Mat Min Mat Hostile Shots Fired 223 | . 29 7 187 Missed 75 | . 13 3 59 Damage Taken 2017 | . 255 86 1676 Core 471 | . 53 10 408 Absorbed by Shields . | . . . . Regen/Repaired (Parts) 32 | . 32 . . Core Remaining (%) 87 | 100 . 74 . Volleys Fired 74 | . 16 6 52 Largest 1 | . 1 1 1 Hottest 45 | . 30 33 45 Shots Fired 74 | . 16 6 52 Gun 4 | . . . 4 Cannon . | . . . . Launcher 70 | . 16 6 48 Special . | . . . . Kinetic . | . . . . Thermal . | . . . . Explosive 70 | . 16 6 48 Electromagnetic 4 | . . . 4 Robot Hit Streak 7 | . 7 1 4 Robot Miss Streak 4 | . 2 3 4 Penetration Max . | . . . . Secondary Targets . | . . . . Shots Hit Robots 63 | . 18 3 42 Core Hits 88 | . 20 9 59 Critical Kills 2 | . . . 2 Critical Parts Destroyed 5 | . 3 . 2 Critical Strikes 7 | . 3 . 4 Smash 7 | . 3 . 4 Melee Attacks 31 | . 6 2 23 Impact 29 | . 6 2 21 Slashing 2 | . . . 2 Piercing . | . . . . Sneak Attacks 18 | . 5 2 11 Combat Hostiles . | . . . . Follow-up Attacks . | . . . . Damage Inflicted 5614 | . 992 663 3959 Guns 44 | . . . 44 Cannons . | . . . . Explosions 3899 | . 631 447 2821 Melee 1671 | . 361 216 1094 Ramming . | . . . . Kinetic . | . . . . Thermal . | . . . . Explosive 3899 | . 631 447 2821 Electromagnetic 44 | . . . 44 Impact 1607 | . 361 216 1030 Slashing 64 | . . . 64 Piercing . | . . . . Highest Corruption . | . . . . Average Corruption . | . . . . Corruption Purged . | . . . . Corruption Blocked . | . . . . Overload Shots . | . . . . Overflow Damage 940 | . 252 195 493 Projectiles . | . . . . Explosions 133 | . 15 21 97 Melee 807 | . 237 174 396 Knockbacks 5 | . 1 2 2 Impact 5 | . 1 2 2 Kinetic . | . . . . Secondary . | . . . . Self-Inflicted Damage 241 | . 13 47 181 Shots 12 | . 1 2 9 Rammed . | . . . . Targets Rammed . | . . . . Kicked . | . . . . Crushed . | . . . . Highest Temperature 22 | . 22 . 21 Average Temperature 8 | . 9 . 8 Received Heat Transfer 669 | . 141 . 528 Siege Activations . | . . . . Robots Corrupted 1 | . . . 1 Combat Hostiles 1 | . . . 1 Parts Fried 25 | . 12 1 12 Impact Corruptions 29 | . 7 5 17 Robots Melted . | . . . . Combat Hostiles . | . . . . Parts Melted . | . . . . Heat Transferred . | . . . . Parts Sabotaged . | . . . . Parts Stolen . | . . . . Parts Stripped . | . . . . Power Chain Reactions . | . . . . Alert | -11 -10 -10 -9 ------- Run | Yrd Mat Min Mat Peak Influence 850 | . 322 200 850 Initial 41 | . . 16 41 Average 264 | . 112 75 616 Maximum Alert Level 3 | . 1 1 3 Low Security (%) 62 | 100 88 88 10 Level 1 9 | . 11 11 5 Level 2 11 | . . . 35 Level 3 16 | . . . 48 Level 4 . | . . . . Level 5 . | . . . . High Security . | . . . . Max Security . | . . . . Squads Dispatched 5 | . 2 . 3 Investigation 2 | . 1 . 1 Extermination . | . . . . Reinforcement 3 | . 1 . 2 Assault . | . . . . Garrison . | . . . . Intercept . | . . . . Searches Triggered . | . . . . Construction Impeded . | . . . . Haulers Reinforced . | . . . . Active Scanning Responses . | . . . . Cargo Convoy Interrupts . | . . . . Stealth | -11 -10 -10 -9 --------- Run | Yrd Mat Min Mat Distress Signals 4 | . 1 . 3 Communications Jammed . | . . . . Distress Signals . | . . . . Times Spotted 51 | . 11 3 37 Peak Tracking Total 9 | . 3 3 9 Tactical Retreats 4 | . . . 4 Traps | -11 -10 -10 -9 ------- Run | Yrd Mat Min Mat Traps Triggered 2 | . 2 . . Indirectly . | . . . . Trap Hack Attempts . | . . . . Triggered . | . . . . Disarmed . | . . . . Reprogrammed . | . . . . Reused . | . . . . Traps Extracted . | . . . . Installed . | . . . . Triggered . | . . . . Machines | -11 -10 -10 -9 ---------- Run | Yrd Mat Min Mat Machines Disabled 11 | . 1 2 8 Max in Single Turn 2 | . 1 2 1 Machines Repaired . | . . . . Machines Dismantled . | . . . . Machines Sabotaged . | . . . . Overloaded Fab Kills . | . . . . Hacking | -11 -10 -10 -9 --------- Run | Yrd Mat Min Mat Machines Accessed 9 | . 6 . 3 Terminals 6 | . 4 . 2 Fabricators . | . . . . Repair Stations 1 | . 1 . . Recycling Units 2 | . 1 . 1 Scanalyzers . | . . . . Garrison Access . | . . . . Total Hacks 30 | . 23 . 7 Successful 19 | . 14 . 5 Failed 11 | . 9 . 2 Catastrophic 3 | . 3 . . Database Lockouts . | . . . . Manual . | . . . . Terminals 22 | . 17 . 5 Fabricators . | . . . . Repair Stations 3 | . 3 . . Recycling Units 5 | . 3 . 2 Scanalyzers . | . . . . Garrison Access . | . . . . Terminal Hacks 14 | . 11 . 3 Record 1 | . 1 . . Prototype ID Bank 2 | . 1 . 1 Branch Access Points 1 | . 1 . . Emergency Access Points 2 | . 2 . . Unreport Threat 1 | . 1 . . Dispatch Records 1 | . 1 . . Maintenance Status 2 | . 1 . 1 Surveillance Status 1 | . 1 . . Reinforcement Status 1 | . 1 . . Recall Reinforcements 1 | . 1 . . Registered Components 1 | . . . 1 Fabricator Hacks . | . . . . Repair Station Hacks 2 | . 2 . . Scan Component 1 | . 1 . . Repair 1 | . 1 . . Recycling Unit Hacks 3 | . 1 . 2 Report Inventory 2 | . 1 . 1 Retrieve Components 1 | . . . 1 Scanalyzer . | . . . . Garrison Access Hacks . | . . . . Unauthorized Hacks . | . . . . Terminals . | . . . . Fabricators . | . . . . Repair Stations . | . . . . Recycling Units . | . . . . Scanalyzers . | . . . . Garrison Access . | . . . . Data Cores Recovered . | . . . . Used . | . . . . Hacking Detections 7 | . 6 . 1 Full Trace Events 4 | . 3 . 1 Feedback Events . | . . . . Feedback Blocked . | . . . . Robot Schematics Acquired . | . . . . Robots Built . | . . . . Authchips . | . . . . Time . | . . . . Total Robot Build Rating . | . . . . Part Schematics Acquired . | . . . . Parts Built . | . . . . Authchips . | . . . . Time . | . . . . Total Part Build Rating . | . . . . Parts Repaired 1 | . 1 . . Time 26 | . 26 . . Parts Recycled . | . . . . Recycled Matter . | . . . . Retrieved Matter . | . . . . Retrieved Components 4 | . . . 4 Parts Scanalyzed . | . . . . Part Schematics Acquired . | . . . . Parts Damaged . | . . . . Bothacking | -11 -10 -10 -9 ------------ Run | Yrd Mat Min Mat Used RIF Installer . | . . . . Robots Hacked . | . . . . Non-combat . | . . . . Combat . | . . . . Robot Hacks Applied . | . . . . Relay Couplers Released . | . . . . Fabnet Peak Effective % . | . . . . Robots Rewired . | . . . . Allies Hacked . | . . . . Hacks Repelled . | . . . . Allies | -11 -10 -10 -9 -------- Run | Yrd Mat Min Mat Total Allies 3 | . . 3 . Largest Group 3 | . . 3 . Highest-Rated Group 40 | . . 40 . Highest-Rated Ally 16 | . . 16 . Total Orders 1 | . . 1 . ROAM 1 | . . 1 . Ally Attacks . | . . . . Total Damage . | . . . . Kills . | . . . . Allies Corrupted . | . . . . Allies Melted . | . . . . Intel | -11 -10 -10 -9 ------- Run | Yrd Mat Min Mat Robot Analysis Total . | . . . . Derelict Logs Recovered 1 | . . 1 . Drone Launches . | . . . . Drone Recoveries . | . . . . Exploration | -11 -10 -10 -9 ------------- Run | Yrd Mat Min Mat Turns Passed 2898 | 58 925 957 958 Spaces Moved 1503 | 46 623 493 341 Core 54 | 14 . . 40 Treads . | . . . . Legs 1341 | 32 623 493 193 Wheels 100 | . . . 100 Hover . | . . . . Flight 8 | . . . 8 Fastest Speed 50 | 50 120 190 95 Average Speed 166 | 98 128 190 212 Slowest Speed 650 | 120 190 190 650 Overloaded Moves . | . . . . Propulsion Burnouts . | . . . . Robots Hopped . | . . . . Cave-ins Triggered . | . . . . Exploration Rate (%) 50 | 3 74 82 44 Regions Visited 3 Branch Regions 1 Pre-discovered Areas . | . . . . Known Exits Taken 1 | . 1 . . Unknown Exits Taken 2 | 1 . 1 . Scrap Searched . | . . . . Spaces Dug 36 | . . 11 25 Terrain Destroyed 450 | . 87 52 311 Melee . | . . . . Projectile . | . . . . AOE 450 | . 87 52 311 Terrain Rammed . | . . . . Walls Destroyed . | . . . . Machines Disabled . | . . . . Actions | -11 -10 -10 -9 --------- Run | Yrd Mat Min Mat Total 1757 | 58 722 503 474 Wait 37 | . 37 . . Move 1500 | 45 622 492 341 Hop . | . . . . Pick Up 54 | 7 22 1 24 Fast Attach . | . . . . Attach 32 | 6 5 . 21 Detach . | . . . . Swap 20 | . 7 2 11 Drop 9 | . 7 . 2 Fire 74 | . 16 6 52 Melee 31 | . 6 2 23 Ram . | . . . . Kick . | . . . . Crush . | . . . . Escape Stasis . | . . . . Rewire . | . . . . Trap . | . . . . Miscellaneous . | . . . . Route ------- -11/Scrapyard -10/Materials (discovered 3 exits: *Mat / *Min x2) -10/Mines -9/Materials (discovered 2 exits: [*Mat] / [*Min]) History --------- Turn | Location | Event 8 | -11/Scrapyard | Discovered new exit (range 15) 59 | -11/Scrapyard | Entered Materials 307 | -10/Materials | Build established: Mutant 390 | -10/Materials | Identified exit to Mines 512 | -10/Materials | Repaired Grenade Launcher 656 | -10/Materials | Discovered new exit (range 16) 984 | -10/Materials | Entered Mines 1009 | -10/Mines | Met a Derelict bent on vengeance 1327 | -10/Mines | Assisted by bots powering up and referring to "LRC-V3" 1536 | -10/Mines | Learned Materials trap positions 1708 | -10/Mines | Found a damaged Exp. Sensor Array with a note attached 1714 | -10/Mines | Found Prototype Device 1715 | -10/Mines | Identified Exp. Sensor Array 1924 | -10/Mines | Discovered new exit (range 7) 1941 | -10/Mines | Entered Materials 1941 | -9/Materials | Evolved 2 slots: Propulsion x1, Utility x1 1942 | -9/Materials | Loaded intel: 23 trap records 2119 | -9/Materials | Destroyed 8 combat bots 2161 | -9/Materials | Lost 5 parts (1p3n1w) 2239 | -9/Materials | Discovered new exit (range 14) 2417 | -9/Materials | Core integrity fell below 50% 2446 | -9/Materials | Lost 9 parts (1p4n2u2w) 2449 | -9/Materials | Destroyed 7 combat bots 2484 | -9/Materials | Core integrity fell below 20% 2827 | -9/Materials | Lost 3 parts (1n1u1w) 2873 | -9/Materials | Discovered new exit (range 15) 2899 | -9/Materials | Destroyed by Y-45 Defender with Beam Rifle Last Messages --------------- 02818_ Acquired 8 matter. 02819_ U-05 Engineer lays Concrete. 02820_ K-01 Serf collects debris. 02820_ Acquired Wheel. 02821_ U-05 Engineer lays Concrete. 02823_ K-01 Serf collects debris. 02823_ Acquired Lgt. Ion Engine. 02824_ U-05 Engineer lays Concrete. 02826_ U-05 Engineer builds a Wall. 02826_ K-01 Serf collects debris. 02830_ U-05 Engineer builds a Wall. 02830_ K-01 Serf collects debris. 02834_ U-05 Engineer builds a Wall. 02835_ K-01 Serf collects debris. 02854_ Acquired Targeting Computer. 02857_ Acquired Hrd. Light Armor Plating. 02863_ Acquired Hvy. EM Pulse Gun. 02864_ Discarded Terrain Scan Processor. 02873_ EXIT=FOUND 02876_ Sneak attack on A-02 Transporter. Map ----- +----------------------------------------------------+ | ?????# # ## # #????????????????????????? | | ?????## ## ## # #?T?"""??????????????????? | | ?????# ### #???"""??????????????????? | | ?????# # # #???"""??????????????????? | | ????# # ######### ##????????????????????????? | | ????### #???????##????"""??????????????????? | | ?????## ##?????????????"""??????????????????? | | ??????# # ###?????????????"""??????????????????? | | ??????## #??????????????????????????????????? | | ???????# #??????????????????????????????????? | | ???????#""" ! #??????????????????????????????????? | | ???????#""" #??????????????????????????????????? | | ???????#""" #??????????????????????????????????? | | ???????# #?????##########???????????????????? | | ???????#+######?????# """ ! ???????????????????? | | ???????# #??????????# "R" ???????????????????? | | ???????# ############ " " #??????????????????? | | ???????# # #??????????????????? | | ???????# # ##?????????????????? | | ???????# !![ # Y""" #?????????????????? | | ???????# ![[ # """ #####??????????????? | | ???????# !!! ![ #?? """ #??????????????? | | ???????# ! /##### #####??????????? | | ???????# !! #??????????? | | ???????########## < #??????????? | | ????????????????# @ #??????????? | | ????????????????######## # # #####??????????? | | ???????????????????????######????????????????????? | | ?????????????????????????????????????????????????? | | ?????????????????????????????????????????????????? | | ?????????????????????????????????????????????????? | | | | | | | | | | | | | | | | | | | | | | | | | | | | | | | | | | | | | | | +----------------------------------------------------+ Best States ------------- Heat Dissipation 28 Energy Generation 14 Energy Capacity 280 Matter Stores 338 Matter Capacity 400 Sight Range 16 Robot Scan Range 20 Terrain Scan Density 85 Additional Mass Support 6 Armor Coverage 150 Evasion (%) 55 Targeting Accuracy 5 Item Schematics ----------------- None Robot Schematics ------------------ None Fabricated ------------ Nothing Alien Tech Used ----------------- None Achievements -------------- Everything Is Under Control GoHome() Power Corrupts Remodeling Risk Taker Challenges ------------ None Game ------ Seed CooledFrostMantle Manual? 0 Play Time 00:33:47 Cumulative 1.6 hours Start 2024.05.02 @ 17:14:44 End 2024.05.03 @ 09:12:57 Sessions 3 Manual Loads 0 Difficulty Rogue Special Mode None Game No. 5 Rogue 5 Adventurer 0 Explorer 0 Win Type - Total 0 Types 0/0/0/0/0/0/0/0/0 Lore% 0 Gallery% 5 Achievement% 6 Wizard Run 0 Options --------- Layout 1 ASCII 0 Keyboard 0 Movement Numpad Keybinds 0 Fullscreen 1 Font 24/Smallcaps Map View 50x35 Zoom Use 0% Tactical HUD 1 Map Filters NONE Filters NONE Steam 1 RUN: f96727d8-f7c1-40be-a8b5-4fed6623e135